Cogmind - Beta 13 @@@ ROGUE MODE // 2024.04.19 @ 19:37:09 Player: DGSTER Result: Destroyed by Y-45 Defender with Beam Rifle Performance ------------- Evolutions (2) 1000 Regions Visited (5) 1000 Robots Destroyed (78) 390 Value Destroyed (3380) 3380 Prototype IDs (5) 100 Alien Tech Used (0) 0 Bonus (953) 953 TOTAL SCORE: 6823 Bonus ------- High Alert Combat Kills 253 Entered Garrisons 200 Used RIF Installer 500 Cogmind --------- Core Integrity 0/550 Matter 285/300 Energy 156/160 System Corruption 4% Temperature Cool (11) Movement Walking (190) Ox1 Location -8/Garrison Parts ------- > --- POWER (1) -------- Light Nuclear Core > --- PROPULSION (2) --- Aluminum Leg Aluminum Leg > --- UTILITY (6) ------ Large Storage Unit Targeting Computer Melee Analysis Suite Melee Analysis Suite Relay Coupler [Sentry] (17) > --- WEAPON (2) ------- Katana Scythe > --- INVENTORY (15) --- Light Nuclear Core Light Nuclear Core Aluminum Leg Aluminum Leg Cooling System Cooling System Relay Coupler [Duelist] (25) Particle Gun Particle Gun Advanced Beam Rifle Rocket Launcher Peak State ------------ > --- POWER ------------ Light Nuclear Core > --- PROPULSION ------- Armored Treads Armored Treads > --- UTILITY ---------- Large Storage Unit Targeting Computer Melee Analysis Suite Melee Analysis Suite Hardlight Generator Hacking Suite > --- WEAPON ----------- Katana Scythe > --- INVENTORY -------- Light Nuclear Core Light Nuclear Core Aluminum Leg Aluminum Leg Cooling System Cooling System Authchip [R/Combat] Relay Coupler [Duelist] Relay Coupler [Sentry] Particle Gun Advanced Beam Rifle Grenade Launcher Rocket Launcher Datajack [Rating: 32] Favorites ----------- Power Light Nuclear Core Engine Heavy Ion Engine Power Core Light Nuclear Core Propulsion Armored Treads Treads Armored Treads Leg Aluminum Leg Utility Targeting Computer Device Hardlight Generator Storage Large Storage Unit Processor Targeting Computer Hackware Hacking Suite Protection Medium Armor Plating Weapon Katana Energy Gun EM Pulse Gun Energy Cannon Beam Cannon Ballistic Gun Improved Assault Rifle Ballistic Cannon Light Cannon Launcher Grenade Launcher Slashing Weapon Katana Special Melee Weapon Datajack Build | -11 -10 -10 -9 -8 -8 ------- Run | Yrd Mat Min Mat Mat Gar Slots Evolved 4 | . . . 2 2 . Power . | . . . . . . Propulsion . | . . . . . . Utility 4 | . . . 2 2 . Weapon . | . . . . . . Parts Attached 87 | 6 4 1 18 24 34 Power 9 | 1 . 1 2 2 3 Engine 4 | 1 . 1 2 . . Core 5 | . . . . 2 3 Reactor . | . . . . . . Propulsion 17 | 2 . . 5 5 5 Treads 13 | 2 . . 5 5 1 Leg 4 | . . . . . 4 Wheel . | . . . . . . Hover . | . . . . . . Flight . | . . . . . . Utility 23 | 1 2 . 3 11 6 Device 9 | . . . 1 5 3 Storage 3 | 1 1 . 1 . . Processor 4 | . 1 . . 2 1 Hackware 3 | . . . . 1 2 Protection 4 | . . . 1 3 . Artifact . | . . . . . . Weapon 38 | 2 2 . 8 6 20 Energy Gun 3 | 1 . . 1 . 1 Energy Cannon 1 | . 1 . . . . Ballistic Gun 8 | 1 . . 4 3 . Ballistic Cannon 4 | . 1 . 3 . . Launcher 6 | . . . . 1 5 Special Weapon . | . . . . . . Impact Weapon . | . . . . . . Slashing Weapon 13 | . . . . 2 11 Piercing Weapon . | . . . . . . Special Melee Weapon 3 | . . . . . 3 Unidentified Prototypes 5 | . . . 3 1 1 Parts Lost 24 | . . . 3 10 11 Power 4 | . . . 1 1 2 Propulsion 7 | . . . 2 2 3 Utility 8 | . . . . 5 3 Weapon 5 | . . . . 2 3 Highest Loss Streak 5 | . . . 2 5 3 To Critical Strikes 1 | . . . . 1 . Average Slot Usage (%) 92 | . 92 99 85 96 90 Engine 5 | . 14 13 10 4 . Core 4 | . . . . 4 8 Treads 15 | . 28 28 20 17 5 Leg 4 | . . . . . 12 Device 8 | . . . 11 15 7 Storage 10 | . 13 14 10 9 9 Processor 17 | . 12 14 11 11 25 Hackware 3 | . . . . 5 4 Protection 2 | . . . . 10 . Energy Cannon 2 | . 5 14 1 . . Ballistic Gun 5 | . 10 . 9 11 . Ballistic Cannon 4 | . 2 14 10 1 . Slashing Weapon 6 | . . . . 3 14 Naked Turns . | . . . . . . Heaviest Build 53 | 14 31 31 43 53 37 Greatest Support 40 | 40 40 40 40 40 40 Greatest Overweight (x) 3 | . . . 2 2 3 Average Overweight (x) . | . . . . . . Largest Inventory Capacity 15 | 8 15 15 15 15 15 Average Capacity 14 | 7 8 15 14 15 15 Most Carried 15 | 4 5 7 11 13 15 Average Carried 8 | 1 3 5 5 10 11 Final Capacity 15 | 8 15 15 15 15 15 Final Carried 11 | 1 4 5 10 9 11 Class Distribution -------------------- 58% | Mutant 29% | Scavenger-Gladiator 10% | Scavenger-Mutant Dominant Class ---------------- Mutant | -10/Materials Mutant | -10/Mines Mutant | -9/Materials Mutant | -8/Materials Scavenger-Gladiator | -8/Garrison Resources | -11 -10 -10 -9 -8 -8 ----------- Run | Yrd Mat Min Mat Mat Gar Matter Collected 1947 | 217 140 31 386 782 391 Remotely 491 | . . . 386 105 . Salvage Created 2917 | . 234 . 430 1448 805 Parts 176 | . 7 . 26 89 54 Haulers Intercepted 3 | . 1 . 1 1 . Recyclers Shooed 2 | . . . . 2 . Parts Field Recycled . | . . . . . . Retrieved Matter . | . . . . . . Parts Self-Destructed . | . . . . . . Prevented . | . . . . . . Kills | -11 -10 -10 -9 -8 -8 ------- Run | Yrd Mat Min Mat Mat Gar Combat Hostiles Destroyed 70 | . 4 1 11 29 25 Melee 26 | . . . . 10 16 Guns 23 | . 4 . 5 14 . Cannons 9 | . . 1 6 2 . AOE 12 | . . . . 3 9 Classes Destroyed 9 | . 2 . 1 5 1 Hauler 3 | . 1 . 1 1 . Recycler 4 | . . . . 4 . Operator 1 | . . . . 1 . Swarmer 17 | . . . . 7 10 Grunt 35 | . 4 . 7 14 10 Duelist 3 | . . . . 1 2 Sentry 12 | . . . 4 6 2 Programmer 1 | . . . . . 1 Heavy 1 | . . . . 1 . Best Kill Streak 4 | . 2 1 4 4 4 Combat Bots Only 4 | . 2 1 4 4 4 Max Kills in Single Turn 4 | . 1 1 1 4 3 Gunslinging . | . . . . . . Exploded 3 | . . . . 3 3 Melee 1 | . . . . 1 1 Uniques/NPCs Destroyed 1 | . . 1 . . . YI-UF0 (-10/Mines) Combat | -11 -10 -10 -9 -8 -8 -------- Run | Yrd Mat Min Mat Mat Gar Hostile Shots Fired 442 | . 33 6 66 202 135 Missed 102 | . 4 2 18 44 34 Damage Taken 4519 | . 423 163 663 2011 1259 Core 770 | . 136 7 68 250 309 Absorbed by Shields 532 | . . . . 284 248 Core Remaining (%) 75 | 100 . 42 83 . . Volleys Fired 163 | . 27 3 50 76 7 Largest 2 | . 2 2 2 2 1 Hottest 95 | . 80 95 64 62 30 Shots Fired 245 | . 32 6 73 127 7 Gun 172 | . 31 . 35 106 . Cannon 55 | . 1 6 38 10 . Launcher 18 | . . . . 11 7 Special . | . . . . . . Kinetic 219 | . 27 3 73 116 . Thermal 4 | . 1 3 . . . Explosive 18 | . . . . 11 7 Electromagnetic 4 | . 4 . . . . Robot Hit Streak 15 | . 7 10 13 15 7 Robot Miss Streak 3 | . 1 . 3 3 1 Penetration Max . | . . . . . . Secondary Targets 2 | . . . . 2 . Max Gunslinging Chain 1 | . . . . 1 . Shots Hit Robots 252 | . 26 6 50 121 49 Core Hits 124 | . 12 2 20 60 30 Critical Kills . | . . . . . . Critical Parts Destroyed 1 | . . . 1 . . Critical Strikes 10 | . . . 3 2 5 Destroy 1 | . . . 1 . . Blast 2 | . . . 2 . . Sever 7 | . . . . 2 5 Melee Attacks 101 | . . . . 31 70 Impact . | . . . . . . Slashing 100 | . . . . 31 69 Piercing . | . . . . . . Sneak Attacks 3 | . . . . 3 . Combat Hostiles . | . . . . . . Follow-up Attacks 7 | . . . . 3 4 Damage Inflicted 6218 | 4 355 130 973 2803 1953 Guns 2100 | . 327 . 455 1318 . Cannons 763 | . 17 105 492 149 . Explosions 1040 | . . . . 481 559 Melee 2222 | . . . . 828 1394 Ramming 93 | 4 11 25 26 27 . Kinetic 2741 | . 273 54 947 1467 . Thermal 68 | . 17 51 . . . Explosive 1040 | . . . . 481 559 Electromagnetic 54 | . 54 . . . . Impact . | . . . . . . Slashing 2222 | . . . . 828 1394 Piercing . | . . . . . . Highest Corruption 4 | . . . . . 4 Average Corruption 3 | . . . . . 3 Corruption Purged . | . . . . . . Corruption Blocked . | . . . . . . Effects 22 | . . . . . 22 Message Errors 6 | . . . . . 6 Matter Fused 2 | . . . . . 2 Heat Flow Errors 5 | . . . . . 5 Energy Discharges 4 | . . . . . 4 Data Loss (minor) 2 | . . . . . 2 Data Loss (major) 3 | . . . . . 3 Overload Shots . | . . . . . . Overflow Damage 147 | . . . . 118 29 Projectiles . | . . . . . . Explosions 15 | . . . . . 15 Melee 132 | . . . . 118 14 Knockbacks 10 | . . 1 4 5 . Impact 1 | . . . 1 . . Kinetic 8 | . . 1 3 4 . Secondary 1 | . . . . 1 . Self-Inflicted Damage 37 | . . . . 10 27 Shots 2 | . . . . 1 1 Rammed 21 | 1 2 5 7 6 . Targets Rammed 21 | 1 2 5 7 6 . Kicked . | . . . . . . Crushed . | . . . . . . Highest Temperature 217 | . 18 99 44 17 217 Average Temperature 36 | . 14 50 13 5 89 Received Heat Transfer 1547 | . 240 . 312 543 452 Siege Activations . | . . . . . . Robots Corrupted . | . . . . . . Combat Hostiles . | . . . . . . Parts Fried . | . . . . . . Impact Corruptions . | . . . . . . Robots Melted . | . . . . . . Combat Hostiles . | . . . . . . Parts Melted 1 | . 1 . . . . Heat Transferred 148 | . 37 111 . . . Parts Sabotaged . | . . . . . . Parts Stolen . | . . . . . . Parts Stripped . | . . . . . . Power Chain Reactions . | . . . . . . Alert | -11 -10 -10 -9 -8 -8 ------- Run | Yrd Mat Min Mat Mat Gar Peak Influence 1528 | . 157 . 263 437 1528 Initial 256 | . . . . 53 256 Average 411 | . 87 . 111 194 867 Maximum Alert Level 4 | . . . 1 2 4 Low Security (%) 48 | 100 100 100 80 60 . Level 1 16 | . . . 19 37 13 Level 2 12 | . . . . 1 29 Level 3 5 | . . . . . 13 Level 4 17 | . . . . . 43 Level 5 . | . . . . . . High Security . | . . . . . . Max Security . | . . . . . . Squads Dispatched 7 | . . . 2 5 . Investigation 2 | . . . . 2 . Extermination . | . . . . . . Reinforcement 5 | . . . 2 3 . Assault . | . . . . . . Garrison . | . . . . . . Intercept . | . . . . . . Searches Triggered . | . . . . . . Construction Impeded . | . . . . . . Haulers Reinforced . | . . . . . . Active Scanning Responses . | . . . . . . Cargo Convoy Interrupts . | . . . . . . Stealth | -11 -10 -10 -9 -8 -8 --------- Run | Yrd Mat Min Mat Mat Gar Distress Signals 8 | . . . 3 5 . Communications Jammed . | . . . . . . Distress Signals . | . . . . . . Times Spotted 112 | . 7 1 21 52 31 Peak Tracking Total 5 | . 2 1 5 5 4 Tactical Retreats 4 | . . . . 2 2 Traps | -11 -10 -10 -9 -8 -8 ------- Run | Yrd Mat Min Mat Mat Gar Traps Triggered 5 | . . . . 2 3 Indirectly . | . . . . . . Trap Hack Attempts . | . . . . . . Triggered . | . . . . . . Disarmed 16 | . . . . 16 . Reprogrammed . | . . . . . . Reused . | . . . . . . Traps Extracted . | . . . . . . Installed . | . . . . . . Triggered . | . . . . . . Machines | -11 -10 -10 -9 -8 -8 ---------- Run | Yrd Mat Min Mat Mat Gar Machines Disabled 6 | . . . . 2 4 Max in Single Turn 1 | . . . . 1 1 Garrison Relay 4 | . . . . . 4 Machines Repaired . | . . . . . . Machines Dismantled . | . . . . . . Machines Sabotaged . | . . . . . . Overloaded Fab Kills . | . . . . . . Hacking | -11 -10 -10 -9 -8 -8 --------- Run | Yrd Mat Min Mat Mat Gar Machines Accessed 17 | . 1 1 4 8 3 Terminals 14 | . 1 . 3 7 3 Fabricators . | . . . . . . Repair Stations . | . . . . . . Recycling Units 1 | . . . 1 . . Scanalyzers . | . . . . . . Garrison Access 1 | . . . . 1 . Total Hacks 51 | . 3 1 8 32 7 Successful 26 | . 1 1 4 18 2 Failed 23 | . 2 . 4 12 5 Catastrophic 9 | . 1 . 3 4 1 Database Lockouts 2 | . . . . 2 . Manual 14 | . 1 . 1 12 . Terminals 45 | . 3 . 7 28 7 Fabricators . | . . . . . . Repair Stations . | . . . . . . Recycling Units 1 | . . . 1 . . Scanalyzers . | . . . . . . Garrison Access 4 | . . . . 4 . Terminal Hacks 22 | . 1 1 3 15 2 Record 4 | . . . . 4 . Open Door 1 | . . 1 . . . Branch Access Points 1 | . . . . 1 . Emergency Access Points 3 | . 1 . . 1 1 Alert Level 3 | . . . 2 1 . Unreport Threat 1 | . . . . 1 . Locate Traps 2 | . . . 1 1 . Disarm Traps 4 | . . . . 4 . Dispatch Records 1 | . . . . 1 . Zone Layout 1 | . . . . 1 . Patrol Navigation 1 | . . . . . 1 Fabricator Hacks . | . . . . . . Repair Station Hacks . | . . . . . . Recycling Unit Hacks 1 | . . . 1 . . Retrieve Components 1 | . . . 1 . . Scanalyzer . | . . . . . . Garrison Access Hacks 2 | . . . . 2 . Unlock Access 1 | . . . . 1 . Coupler Status 1 | . . . . 1 . Unauthorized Hacks 1 | . . . . 1 . Terminals . | . . . . . . Fabricators . | . . . . . . Repair Stations . | . . . . . . Recycling Units . | . . . . . . Scanalyzers . | . . . . . . Garrison Access 1 | . . . . 1 . Reprogram 1 | . . . . 1 . Data Cores Recovered . | . . . . . . Used . | . . . . . . Hacking Detections 15 | . 1 . 3 8 3 Full Trace Events 5 | . . . 1 2 2 Feedback Events 1 | . . . . . 1 Corruption 1 | . . . . . 1 Feedback Blocked . | . . . . . . Robot Schematics Acquired . | . . . . . . Robots Built . | . . . . . . Authchips . | . . . . . . Time . | . . . . . . Total Robot Build Rating . | . . . . . . Part Schematics Acquired . | . . . . . . Parts Built . | . . . . . . Authchips . | . . . . . . Time . | . . . . . . Total Part Build Rating . | . . . . . . Parts Repaired . | . . . . . . Time . | . . . . . . Parts Recycled . | . . . . . . Recycled Matter . | . . . . . . Retrieved Matter . | . . . . . . Retrieved Components 5 | . . . 5 . . Parts Scanalyzed . | . . . . . . Part Schematics Acquired . | . . . . . . Parts Damaged . | . . . . . . Bothacking | -11 -10 -10 -9 -8 -8 ------------ Run | Yrd Mat Min Mat Mat Gar Used RIF Installer 1 | . . . . . 1 Robots Hacked 1 | . . . . . 1 Non-combat . | . . . . . . Combat 1 | . . . . . 1 Robot Hacks Applied 1 | . . . . . 1 parse_system 1 | . . . . . 1 Relay Couplers Released 20 | . . . . . 20 Machine Destruction 17 | . . . . . 17 Programmers 3 | . . . . . 3 Attached 1 | . . . . . 1 Fabnet Peak Effective % . | . . . . . . Robots Rewired . | . . . . . . Allies Hacked . | . . . . . . Hacks Repelled . | . . . . . . Allies | -11 -10 -10 -9 -8 -8 -------- Run | Yrd Mat Min Mat Mat Gar Total Allies . | . . . . . . Largest Group . | . . . . . . Highest-Rated Group . | . . . . . . Highest-Rated Ally . | . . . . . . Total Orders . | . . . . . . Ally Attacks . | . . . . . . Total Damage . | . . . . . . Kills . | . . . . . . Allies Corrupted . | . . . . . . Allies Melted . | . . . . . . Intel | -11 -10 -10 -9 -8 -8 ------- Run | Yrd Mat Min Mat Mat Gar Robot Analysis Total . | . . . . . . Derelict Logs Recovered 1 | . . 1 . . . Drone Launches . | . . . . . . Drone Recoveries . | . . . . . . Exploration | -11 -10 -10 -9 -8 -8 ------------- Run | Yrd Mat Min Mat Mat Gar Turns Passed 5771 | 76 429 750 924 1309 2283 Spaces Moved 2614 | 47 209 447 414 416 1081 Core 29 | 14 . . 15 . . Treads 1828 | 33 209 447 399 416 324 Legs 757 | . . . . . 757 Wheels . | . . . . . . Hover . | . . . . . . Flight . | . . . . . . Fastest Speed 50 | 50 160 160 150 170 170 Average Speed 180 | 127 160 160 168 216 185 Slowest Speed 330 | 160 160 160 250 330 330 Overloaded Moves . | . . . . . . Propulsion Burnouts . | . . . . . . Robots Hopped . | . . . . . . Cave-ins Triggered . | . . . . . . Exploration Rate (%) 49 | 3 41 86 40 45 80 Regions Visited 5 Branch Regions 1 Pre-discovered Areas 2 | . . 2 . . . Known Exits Taken 1 | . . . . 1 . Unknown Exits Taken 4 | 1 1 1 1 . . Scrap Searched 2 | . . 2 . . . Spaces Dug . | . . . . . . Terrain Destroyed 101 | . . . 1 69 31 Melee . | . . . . . . Projectile 1 | . . . 1 . . AOE 100 | . . . . 69 31 Terrain Rammed . | . . . . . . Walls Destroyed . | . . . . . . Machines Disabled . | . . . . . . Actions | -11 -10 -10 -9 -8 -8 --------- Run | Yrd Mat Min Mat Mat Gar Total 3330 | 63 273 474 581 673 1266 Wait 195 | 3 21 12 43 97 19 Move 2609 | 46 208 446 413 415 1081 Hop . | . . . . . . Pick Up 87 | 7 7 4 30 17 22 Fast Attach . | . . . . . . Attach 87 | 6 4 1 17 24 35 Detach 27 | . 1 . . 7 19 Swap 2 | . . . 1 . 1 Drop 35 | . 3 3 20 4 5 Fire 163 | . 27 3 50 76 7 Melee 89 | . . . . 27 62 Ram . | . . . . . . Kick . | . . . . . . Crush 21 | 1 2 5 7 6 . Escape Stasis 15 | . . . . . 15 Rewire . | . . . . . . Trap . | . . . . . . Miscellaneous . | . . . . . . Route ------- -11/Scrapyard -10/Materials -10/Mines (discovered 2 exits: *Mat x2) -9/Materials -8/Materials (discovered 2 exits: Sto / Gar) -8/Garrison (discovered 4 exits: [*Mat x4]) History --------- Turn | Location | Event 9 | -11/Scrapyard | Discovered new exit (range 14) 77 | -11/Scrapyard | Entered Materials 280 | -10/Materials | Core integrity fell below 50% 301 | -10/Materials | Build established: Mutant 429 | -10/Materials | Discovered new exit (range 9) 506 | -10/Materials | Entered Mines 506 | -10/Mines | Discovered new exit (range 9) 513 | -10/Mines | Received a Rocket Launcher from a helpful Derelict 690 | -10/Mines | Learned location of Mines (-9) 715 | -10/Mines | Learned location of Storage (-8) 859 | -10/Mines | Found the Drone Emporium 864 | -10/Mines | Found Prototype Device 927 | -10/Mines | Discovered new exit (range 9) 936 | -10/Mines | Destroyed YI-UF0 1256 | -10/Mines | Entered Materials 1256 | -9/Materials | Evolved 2 slots: Utility x2 2090 | -9/Materials | Discovered new exit (range 10) 2180 | -9/Materials | Entered another Materials area 2180 | -8/Materials | Evolved 2 slots: Utility x2 2475 | -8/Materials | Lost 3 parts (2u1w) 2880 | -8/Materials | Central database locked down 2880 | -8/Materials | Central database locked down 3071 | -8/Materials | Identified exit to Storage 3447 | -8/Materials | Lost 5 parts (1p2n2u) 3487 | -8/Materials | Identified exit to Garrison 3489 | -8/Materials | Entered Garrison 3523 | -8/Garrison | Triggered checkpoint 3593 | -8/Garrison | Garrison Relay disabled 3683 | -8/Garrison | Triggered checkpoint 3691 | -8/Garrison | Core integrity fell below 50% 3735 | -8/Garrison | Triggered checkpoint 3779 | -8/Garrison | Triggered checkpoint 3808 | -8/Garrison | Discovered new exit (range 13) 3921 | -8/Garrison | Triggered checkpoint 3960 | -8/Garrison | Garrison Relay disabled 4250 | -8/Garrison | Discovered new exit (range 12) 4365 | -8/Garrison | Triggered checkpoint 4389 | -8/Garrison | Garrison Relay disabled 4463 | -8/Garrison | Triggered checkpoint 4595 | -8/Garrison | Discovered new exit (range 12) 4609 | -8/Garrison | Core integrity fell below 20% 4645 | -8/Garrison | Lost 3 parts (1p1u1w) 4753 | -8/Garrison | Triggered checkpoint 4772 | -8/Garrison | Garrison Relay disabled 4978 | -8/Garrison | Build established: Scavenger-Gladiator 5124 | -8/Garrison | Discovered new exit (range 6) 5613 | -8/Garrison | Installed Relay Interface Framework 5772 | -8/Garrison | Destroyed by Y-45 Defender with Beam Rifle Last Messages --------------- 05250_ System corrupted: Energy discharge (-59). 05289_ ALERT: Garrison interior compromised. 05329_ System corrupted: Heat flow error (+235). 05370_ System corrupted: Energy discharge (-46). 05396_ System corrupted: Heat flow error (+108). 05416_ 1U C= S4RUVZPYISY6>LC58PKS/TQ1FVU=WLUWT5 05437_ CU7SLAKFK0D/=XJKIFQPV LN0EGQ7 FG,P&RPIQXB9,PV1FL>KR WBQQHPS 05738_ System corrupted: Energy discharge (-62). 05739_ ALERT: Garrison interior compromised. 05764_ Y-45 Defender springs to life. 05766_ Hardlight Generator destroyed. 05767_ Y-45 Defender Lgt. Treads severed. Map ----- +----------------------------------------------------+ | ?????????????????????????????????????????????????? | | ?????????????????????????????????????????????????? | | ?????????????????????????????????????????????????? | | ?????????????????????????????????????????????????? | | ?????????????????????#####???????????????????????? | | ?????????????????????#"""#???????????????????????? | | ?????????????????????#" "#???????????????????????? | | ?????????????????????#" "#????????####???????????? | | ?????????????????????#" "#????????# #????????#### | | ?????????????????????# #????????# #????????#"" | | ????????????????####### ############"###########!! | | ????????????????# " ! | | ????????????????# + = ^ | | ????????????????# ################### ### !*#### | | ????????????????# #?????????????????# #?#[[%#??? | | ????????????????# #?????????????????# #?#####??? | | ????????????????# #?????????????????# #????????? | | ????????????????# #?????????????????# #????????? | | ????????????????# #############?????# #????????? | | ????????????????# ##""""""""""#?????# #????????? | | ????????????????# ##"""!![["""#???### #????????? | | ????????????????# ##"" ""##### #????????? | | ????????????????# ##"= ]"## " < #????????? | | ????????????????# ##"! #### ["## ## #????????? | | ????????????????# ##"! # Y !"## #### ########## | | ????????????????# ##"] =@Y# ]"## #??# ##"""""""" | | ????????????????# ##"/ #### !"## #??# ##"! !!!!" | | ????????????????# ##"= ="## #??# ## | | ????????????????# ##"" ""## #??# ## | | ????????????????# #### #### #??# ## | | ????????????????# #??# #??# #??# ## | | ????????????????# #??### ###??# #??# | | #+########??????#+"######+"######"####! | | #??????# ! %=##"!!!!!!" | | ^^ #??????# * * ##"""""""" | | #+##### #??????# ###################=!########## | | ??????#=!#??????# #?????#############%=##???????? | | ??????# #??????# #?????# #???????? | | ??????+=%#??????# #?????# #???????? | | ??????# #??????# #?????# ### ######???????? | | ??????# ######## #?????# +?+ #????????????? | | ??????# ## ## #?????# ??######????????????? | | ?????## ## ## ##????# < ????????????????????? | | #+#### #????# ?????????????????????? | | #????# ?????????????????????? | | #????###?????????????????????? | | ##### * # ## #????????????????????????????? | | ???###[% ## ## ###??????????????????????????? | | ???# ==% #??????????????????????????? | | ???#=%** %=#??????????????????????????? | +----------------------------------------------------+ Best States ------------- Heat Dissipation 45 Energy Generation 14 Energy Capacity 280 Matter Stores 300 Matter Capacity 300 Sight Range 16 Terrain Scan Density 10 Armor Coverage 375 Evasion (%) 50 Targeting Accuracy 5 Melee Accuracy 10 Recoil Reduction 2 Offensive Hacking 10 Relay Coupler Types 1 Relay Coupler Value 17 Authchip Count 1 Item Schematics ----------------- None Robot Schematics ------------------ None Fabricated ------------ Nothing Alien Tech Used ----------------- None Achievements -------------- None Challenges ------------ None Game ------ Seed BehemothEnhancedCannon Manual? 0 Play Time 00:45:23 Cumulative 13.5 hours Start 2024.04.19 @ 18:48:04 End 2024.04.19 @ 19:37:09 Sessions 1 Manual Loads 0 Difficulty Rogue Special Mode None Game No. 13 Rogue 12 Adventurer 1 Explorer 0 Win Type - Total 0 Types 0/0/0/0/0/0/0/0/0 Lore% 21 Gallery% 24 Achievement% 20 Wizard Run 0 Options --------- Layout 1 ASCII 0 Keyboard 0 Movement Numpad Keybinds 0 Fullscreen 1 Font 24/Smallcaps Map View 50x35 Zoom Use 0% Tactical HUD 1 Map Filters NONE Filters NONE Steam 1 RUN: 5dfe5639-2591-4246-9b4e-c94d9971c6f1